fUST/lending_fUST_20250926
["ID","MTS","AMOUNT","RATE_DAILY","PERIOD"]
[387705387,1758816650053,-1554.25,0.000387,14]
[387705388,1758816650063,-160.0,0.00038741,4]
[387705389,1758816650072,-43810.5731108,0.000389,120]
[387705390,1758816650082,-29359.5380139,0.00039,120]
[387705391,1758816650091,-160.506415,0.00039041,10]
[387705392,1758816650101,-225.2,0.00039178,30]
[387705393,1758816650111,-2263.0832248,0.00039194,32]
[387705394,1758816650120,-4000.0,0.00039237,8]
[387705395,1758816650129,-696.92340553,0.00039238,120]
[387705396,1758816650139,-264.04,0.0003929,30]
[387705397,1758816650149,-1554.24,0.000393,14]
[387705398,1758816650159,-410.0,0.00039388,2]
[387705399,1758816650168,-600.0,0.00039426,7]
[387705400,1758816650178,-800.0,0.00039437,7]
[387705401,1758816650188,-500.0,0.00039452,120]
[387705402,1758816650198,-500.0,0.00039452,120]
[387705403,1758816650207,-500.0,0.00039452,120]
[387705404,1758816650217,-500.0,0.00039452,120]
[387705405,1758816650227,-191.83981498,0.00039452,120]
[387705406,1758816650237,-965832.5589493,0.00039785,17]
[387705407,1758816650368,-4253825.95193743,0.00039785,17]
[387705408,1758816650452,-1138.82,0.00022603,2]
[387705409,1758816650462,-469.09928709,0.00022877,2]
[387705410,1758816650473,-669.72071291,0.00022877,2]
[387705411,1758816650482,-1138.82,0.00023151,2]
[387705412,1758816650492,-1138.82,0.00023425,2]
[387705413,1758816650501,-1138.82,0.00023699,2]
[387705414,1758816650511,-1138.82,0.00023973,2]
[387705415,1758816650521,-1138.82,0.00024247,2]
[387705416,1758816650531,-216961.10026379,0.00039785,17]
[387705417,1758816650547,-3415.10087164,0.00039785,17]
[387705418,1758816650637,-160.0,0.00022523,2]
[387705419,1758816650647,-1006.44846213,0.00024521,2]
[387705420,1758816650659,-132.37153787,0.00024521,2]
[387705421,1758816650669,-921.72846213,0.00024795,2]
[387705422,1758816650775,-480.0,0.00019315,2]
[387705423,1758816650784,-217.09153787,0.00024795,2]
[387705424,1758816650794,-1138.82,0.00025069,2]
[387705425,1758816650803,-1138.82,0.00025343,2]
[387705426,1758816650812,-1139.05920935,0.00025616,2]
[387705427,1758816650822,-25071.93770127,0.00039785,17]
[387705428,1758816654581,-247.67766139,0.00019249,2]
[387705433,1758816921841,-207.03412914,0.00019273,2]
[387705434,1758816921924,-1200.0,0.00019313,2]
[387705435,1758816922006,-480.0,0.00019314,2]
[387705436,1758816922088,-480.0,0.00019314,2]
[387705437,1758816922168,-480.0,0.00019314,2]
[387705438,1758816922253,-480.0,0.00019314,2]
[387705439,1758816922333,-480.0,0.00019314,2]
[387705440,1758816922410,-483.79293943,0.00019314,2]
[387705441,1758816922488,-480.0,0.00019314,2]
[387705442,1758816923190,-458.35586286,0.00019314,2]
[387705447,1758816931613,-21.64413714,0.00019314,2]
[387705448,1758816931692,-480.0,0.00019314,2]
[387705449,1758816931770,-480.0,0.00019314,2]
[387705450,1758816931849,-634.63599085,0.00019314,2]
[387705451,1758816931925,-355.32049756,0.00019314,2]
[387705452,1758816932004,-500.0,0.00019314,2]
[387705453,1758816932085,-247.44910227,0.00019314,2]
[387705454,1758816932164,-500.0,0.00019314,2]
[387705455,1758816932245,-500.0,0.00019314,2]
[387705456,1758816932409,-500.0,0.00019314,2]
[387705457,1758816932482,-500.0,0.00019314,2]
[387705458,1758816932559,-61.91054436,0.00019314,2]
[387705459,1758816933349,-438.08945564,0.00019314,2]
[387705460,1758816933379,-316.89277712,0.00019314,2]
[387705461,1758816941609,-246.71275569,0.00019215,2]
[387705462,1758816941685,-183.10722288,0.00019314,2]
[387705463,1758816941762,-156.74622486,0.00019314,2]
[387705464,1758816941841,-500.0,0.00019314,2]
[387705465,1758816941924,-227.51647682,0.00019314,2]
[387705466,1758816942001,-500.0,0.00019314,2]
[387705467,1758816942083,-500.0,0.00019314,2]
[387705468,1758816942165,-480.0,0.00019314,2]
[387705469,1758816942246,-480.0,0.00019314,2]
[387705470,1758816942324,-480.0,0.00019314,2]
[387705471,1758816942400,-480.0,0.00019314,2]
[387705472,1758816942477,-480.0,0.00019314,2]
[387705473,1758816942552,-91.8446395,0.00019314,2]
[387705474,1758816943386,-388.1553605,0.00019314,2]
[387705475,1758816951621,-480.0,0.00019314,2]
[387705476,1758816951701,-480.0,0.00019314,2]
[387705477,1758816951781,-480.0,0.00019314,2]
[387705478,1758816951861,-480.0,0.00019314,2]
[387705479,1758816951942,-480.0,0.00019314,2]
[387705480,1758816952021,-238.37381776,0.00019314,2]
[387705481,1758816952100,-480.0,0.00019314,2]
[387705482,1758816952185,-480.0,0.00019314,2]
[387705483,1758816952268,-480.0,0.00019314,2]
[387705484,1758816952344,-480.0,0.00019314,2]
[387705485,1758816952422,-380.96644403,0.00019314,2]
[387705486,1758816953173,-121.32947642,0.00019314,2]
[387705487,1758817047019,-300.0,0.00019313,2]
[387705488,1758817047096,-1200.0,0.00019313,2]
[387705489,1758817047174,-1411.59349541,0.00019314,2]
[387705490,1758817047257,-480.81148815,0.00019314,2]
[387705491,1758817047338,-295.06880156,0.00019314,2]
[387705492,1758817047424,-480.0,0.00019314,2]
[387705493,1758817047506,-546.62874828,0.00019314,2]
[387705494,1758817047589,-91.8049332,0.00019314,2]
[387705495,1758817048155,-388.1950668,0.00019314,2]
[387705497,1758817061824,-2710.26906059,0.00019273,2]
[387705498,1758817061899,-485.28201622,0.00019314,2]
[387705499,1758817061972,-480.0,0.00019314,2]
[387705500,1758817062048,-480.0,0.00019314,2]
[387705501,1758817062120,-266.67726044,0.00019314,2]
[387705502,1758817062186,-480.0,0.00019314,2]
[387705503,1758817062257,-12.62773306,0.00019314,2]
[387705504,1758817062719,-170.29785938,0.00019314,2]
[387705505,1758817102073,-300.0,0.00019313,2]
[387705506,1758817102150,-480.0,0.00019314,2]
[387705507,1758817102225,-250.0,0.00019314,2]
[387705508,1758817102305,-500.0,0.00019314,2]
[387705509,1758817102382,-480.0,0.00019314,2]
[387705510,1758817102456,-480.0,0.00019314,2]
[387705511,1758817102527,-480.0,0.00019314,2]
[387705512,1758817102605,-619.67000859,0.00019314,2]
[387705513,1758817102679,-480.0,0.00019314,2]
[387705514,1758817102753,-480.0,0.00019314,2]
[387705515,1758817102827,-420.66998282,0.00019314,2]
[387705516,1758817103229,-59.33001718,0.00019314,2]
[387705517,1758817103309,-480.0,0.00019314,2]
[387705518,1758817103391,-480.0,0.00019314,2]
[387705519,1758817103471,-480.0,0.00019314,2]
[387705520,1758817103553,-480.0,0.00019314,2]
[387705521,1758817103633,-480.0,0.00019314,2]
[387705522,1758817103713,-480.0,0.00019314,2]
[387705523,1758817103790,-480.0,0.00019314,2]
[387705524,1758817103869,-480.0,0.00019314,2]
[387705525,1758817103948,-480.0,0.00019314,2]
[387705526,1758817104026,-480.0,0.00019314,2]
[387705527,1758817104381,-480.0,0.00019314,2]
[387705528,1758817104459,-480.0,0.00019314,2]
[387705529,1758817104538,-480.74857109,0.00019314,2]
[387705530,1758817104619,-480.0,0.00019314,2]
[387705531,1758817104696,-480.0,0.00019314,2]
[387705532,1758817104774,-480.0,0.00019314,2]
[387705533,1758817104852,-480.0,0.00019314,2]
[387705534,1758817104930,-480.0,0.00019314,2]
[387705535,1758817105007,-480.0,0.00019314,2]
[387705536,1758817105088,-480.0,0.00019314,2]
[387705538,1758817107005,-341.42855391,0.00019314,2]
[387705539,1758817107082,-138.57144609,0.00019314,2]
[387705540,1758817107091,-259.94141173,0.00019314,2]
[387705543,1758817111970,-220.05858827,0.00019314,2]
[387705544,1758817112052,-480.0,0.00019314,2]
[387705545,1758817112136,-480.0,0.00019314,2]
[387705546,1758817112216,-480.0,0.00019314,2]
[387705547,1758817112292,-480.0,0.00019314,2]
[387705548,1758817112367,-480.0,0.00019314,2]
[387705549,1758817112441,-480.0,0.00019314,2]
[387705550,1758817112516,-480.0,0.00019314,2]
[387705551,1758817112591,-480.0,0.00019314,2]
[387705552,1758817112666,-480.0,0.00019314,2]
[387705553,1758817112741,-438.39761058,0.00019314,2]
[387705554,1758817113151,-43.0976023,0.00019314,2]
[387705555,1758817113232,-480.0,0.00019314,2]
[387705556,1758817113313,-579.33245235,0.00019314,2]
[387705557,1758817113401,-492.69313248,0.00019314,2]
[387705558,1758817113487,-480.0,0.00019314,2]
[387705559,1758817113568,-480.0,0.00019314,2]
[387705560,1758817113651,-480.0,0.00019314,2]
[387705561,1758817113739,-480.0,0.00019314,2]
[387705562,1758817113827,-480.0,0.00019314,2]
[387705563,1758817113911,-480.0,0.00019314,2]
[387705564,1758817113999,-480.0,0.00019314,2]
[387705565,1758817115394,-43.0976023,0.00019314,2]
[387705566,1758817115459,-89.76362574,0.00019314,2]
[387705568,1758817131884,-347.13877196,0.00019314,2]
[387705569,1758817131959,-480.0,0.00019314,2]
[387705570,1758817132037,-480.0,0.00019314,2]
[387705571,1758817132115,-480.0,0.00019314,2]
[387705572,1758817132192,-480.0,0.00019314,2]
[387705573,1758817132267,-480.0,0.00019314,2]
[387705574,1758817132343,-480.0,0.00019314,2]
[387705575,1758817132418,-480.0,0.00019314,2]
[387705576,1758817132493,-480.0,0.00019314,2]
[387705577,1758817132568,-480.0,0.00019314,2]
[387705578,1758817132644,-185.73245608,0.00019314,2]
[387705579,1758817133359,-294.26754392,0.00019314,2]
[387705580,1758817141902,-480.0,0.00019314,2]
[387705581,1758817141982,-480.0,0.00019314,2]
[387705582,1758817142066,-480.0,0.00019314,2]
[387705583,1758817142151,-480.0,0.00019314,2]
[387705584,1758817142233,-480.0,0.00019315,2]
[387705585,1758817142311,-480.0,0.00019315,2]
[387705586,1758817142391,-2078.96,0.00019315,2]
[387705587,1758817142931,-82.09,0.00019315,2]
[387705588,1758817151919,-480.0,0.00019314,2]
[387705589,1758817151996,-480.0,0.00019314,2]
[387705590,1758817152076,-491.64178143,0.00019314,2]
[387705591,1758817152158,-397.91,0.00019315,2]
[387705592,1758817152246,-480.0,0.00019315,2]
[387705593,1758817152330,-480.0,0.00019315,2]
[387705594,1758817152409,-480.0,0.00019315,2]
[387705595,1758817152484,-480.0,0.00019315,2]
[387705596,1758817152560,-480.0,0.00019315,2]
[387705597,1758817152638,-480.0,0.00019315,2]
[387705598,1758817152712,-60.90643714,0.00019315,2]
[387705599,1758817153503,-419.09356286,0.00019315,2]
[387705601,1758817161948,-480.0,0.00019314,2]
[387705602,1758817162018,-480.0,0.00019314,2]
[387705603,1758817162090,-480.0,0.00019315,2]
[387705604,1758817162163,-480.0,0.00019315,2]
[387705605,1758817162230,-480.0,0.00019315,2]
[387705606,1758817162300,-485.84288142,0.00019315,2]
[387705607,1758817162365,-480.0,0.00019315,2]
[387705608,1758817162431,-480.0,0.00019315,2]
[387705609,1758817162495,-480.0,0.00019315,2]
[387705610,1758817162561,-480.0,0.00019315,2]
[387705611,1758817163184,-388.32423716,0.00019315,2]
[387705612,1758817171949,-480.0,0.00019314,2]
[387705613,1758817172017,-480.0,0.00019314,2]
[387705614,1758817172088,-480.0,0.00019314,2]
[387705615,1758817172158,-480.0,0.00019314,2]
[387705616,1758817172224,-480.0,0.00019314,2]
[387705617,1758817172288,-91.67576284,0.00019315,2]
[387705618,1758817172354,-166.66,0.00019315,2]
[387705619,1758817172419,-480.0,0.00019315,2]
[387705620,1758817172483,-480.0,0.00019315,2]
[387705621,1758817172547,-480.0,0.00019315,2]
[387705622,1758817172612,-480.0,0.00019315,2]
[387705623,1758817172678,-363.33847432,0.00019315,2]
[387705624,1758817173335,-116.66152568,0.00019315,2]
[387705626,1758817222406,-215.87366122,0.00019248,2]
[387705627,1758817222488,-300.0,0.00019313,2]
[387705628,1758817222566,-480.0,0.00019314,2]
[387705629,1758817222643,-480.0,0.00019314,2]
[387705630,1758817222721,-480.0,0.00019314,2]
[387705631,1758817222801,-480.0,0.00019314,2]
[387705632,1758817222880,-480.0,0.00019314,2]
[387705633,1758817222959,-480.0,0.00019314,2]
[387705634,1758817223037,-527.21494552,0.00019314,2]
[387705635,1758817223119,-480.0,0.00019314,2]
[387705636,1758817223203,-480.0,0.00019314,2]
[387705637,1758817224322,-233.83278652,0.00019314,2]
[387705638,1758817256911,-246.16721348,0.00019314,2]
[387705639,1758817256994,-480.0,0.00019314,2]
[387705640,1758817257077,-480.0,0.00019314,2]
[387705641,1758817257157,-480.0,0.00019314,2]
[387705642,1758817257236,-480.0,0.00019314,2]
[387705643,1758817257316,-480.0,0.00019314,2]
[387705644,1758817257395,-480.0,0.00019314,2]
[387705645,1758817257472,-480.0,0.00019314,2]
[387705646,1758817257548,-480.0,0.00019314,2]
[387705647,1758817257624,-480.0,0.00019314,2]
[387705648,1758817257700,-407.84182632,0.00019314,2]
[387705649,1758817258518,-51.9919204,0.00019314,2]
[387705650,1758817287537,-300.0,0.00019313,2]
[387705651,1758817287616,-428.0080796,0.00019314,2]
[387705652,1758817287694,-480.0,0.00019314,2]
[387705653,1758817287775,-480.0,0.00019314,2]
[387705654,1758817287851,-481.24140894,0.00019314,2]
[387705655,1758817287928,-480.0,0.00019314,2]
[387705656,1758817288013,-480.0,0.00019314,2]
[387705657,1758817288090,-480.0,0.00019314,2]
[387705658,1758817288170,-480.0,0.00019314,2]
[387705659,1758817288248,-480.0,0.00019314,2]
[387705660,1758817288328,-401.51102292,0.00019314,2]
[387705661,1758817289205,-58.48897708,0.00019314,2]
[387705662,1758817297165,-10000.01,0.00019314,2]
[387705663,1758817297502,-2962.0577768,0.00019314,2]
[387705664,1758817297577,-4075.8944464,0.00019314,2]
[387705665,1758817368071,-2000.0,0.00029699,30]
[387705666,1758817368096,-1858.099999,0.00029699,30]
[387705667,1758817384210,-3114.0,0.0003,120]
[387705668,1758817384246,-232.30780184,0.00037,120]
[387705669,1758817384279,-829.79673169,0.00038122,30]
[387705670,1758817384309,-232.30780184,0.0003847,120]
[387705671,1758817384338,-504.06242318,0.0003897,30]
[387705672,1758817384370,-829.79673169,0.00039194,32]
[387705673,1758817384398,-472.54993543,0.00039452,120]
[387705674,1758817384449,-216.97,0.000399,120]
[387705675,1758817384479,-180.02,0.000399,120]
[387705676,1758817384507,-170.23956238,0.000399,120]
[387705677,1758817384537,-200.88282832,0.00039999,30]
[387705678,1758817384569,-201.62966623,0.00039999,30]
[387705679,1758817384604,-500.0,0.00039999,31]
[387705680,1758817384638,-500.0,0.00039999,31]
[387705681,1758817384672,-500.0,0.00039999,31]
[387705682,1758817384706,-500.0,0.00039999,31]
[387705683,1758817384739,-500.0,0.00039999,31]
[387705684,1758817384771,-500.0,0.00039999,31]
[387705685,1758817384808,-500.0,0.00039999,31]
[387705686,1758817384842,-500.0,0.00039999,31]
[387705687,1758817384877,-500.0,0.00039999,31]
[387705688,1758817384911,-500.0,0.00039999,31]
[387705689,1758817384944,-500.0,0.00039999,31]
[387705690,1758817384977,-500.0,0.00039999,31]
[387705691,1758817385009,-500.0,0.00039999,31]
[387705692,1758817385046,-500.0,0.00039999,31]
[387705693,1758817385082,-500.0,0.00039999,31]
[387705694,1758817385120,-500.0,0.00039999,31]
[387705695,1758817385155,-500.0,0.00039999,31]
[387705696,1758817385190,-500.0,0.00039999,31]
[387705697,1758817385225,-500.0,0.00039999,31]
[387705698,1758817385259,-500.0,0.00039999,31]
[387705699,1758817385295,-500.0,0.00039999,31]
[387705700,1758817385328,-500.0,0.00039999,31]
[387705701,1758817385363,-500.0,0.00039999,31]
[387705702,1758817385398,-500.0,0.00039999,31]
[387705703,1758817385431,-500.0,0.00039999,31]
[387705704,1758817385463,-500.0,0.00039999,31]
[387705705,1758817385499,-500.0,0.00039999,31]
[387705706,1758817385534,-500.0,0.00039999,31]
[387705707,1758817385567,-500.0,0.00039999,31]
[387705708,1758817385602,-500.0,0.00039999,31]
[387705709,1758817385636,-500.0,0.00039999,31]
[387705710,1758817385668,-500.0,0.00039999,31]
[387705711,1758817385701,-500.0,0.00039999,31]
[387705712,1758817385735,-448.5248566,0.00039999,31]
[387705713,1758817385768,-500.0,0.00039999,31]
[387705714,1758817385796,-500.0,0.00039999,31]
[387705715,1758817385825,-452.10926304,0.00039999,31]
[387705716,1758817385859,-500.0,0.00039999,31]
[387705717,1758817385894,-500.0,0.00039999,31]
[387705718,1758817385927,-500.0,0.00039999,31]
[387705719,1758817385963,-500.0,0.00039999,31]
[387705720,1758817385996,-500.0,0.00039999,31]
[387705721,1758817386030,-500.0,0.00039999,31]
[387705722,1758817386066,-500.0,0.00039999,31]
[387705723,1758817386100,-500.0,0.00039999,31]
[387705724,1758817386134,-500.0,0.00039999,31]
[387705725,1758817386165,-500.0,0.00039999,31]
[387705726,1758817386197,-500.0,0.00039999,31]
[387705727,1758817386228,-500.0,0.00039999,31]
[387705728,1758817386260,-500.0,0.00039999,31]
[387705729,1758817386292,-500.0,0.00039999,31]
[387705730,1758817386325,-500.0,0.00039999,31]
[387705731,1758817386358,-156.55745698,0.00039999,31]
[387705732,1758817386390,-500.0,0.00039999,31]
[387705733,1758817386421,-500.0,0.00039999,31]
[387705734,1758817386451,-500.0,0.00039999,31]
[387705735,1758817386482,-500.0,0.00039999,31]
[387705736,1758817386513,-500.0,0.00039999,31]
[387705737,1758817386539,-506.59708313,0.00039999,31]
[387705738,1758817386573,-500.0,0.00039999,31]
[387705739,1758817386601,-233.64664855,0.00039999,31]
[387705740,1758817386633,-232.9672371,0.00039999,31]
[387705741,1758817386665,-500.0,0.00039999,31]
[387705742,1758817386697,-500.0,0.00039999,31]
[387705743,1758817386818,-500.0,0.00039999,31]
[387705744,1758817386851,-500.0,0.00039999,31]
[387705745,1758817386884,-500.0,0.00039999,31]
[387705746,1758817386917,-500.0,0.00039999,31]
[387705747,1758817386948,-500.0,0.00039999,31]
[387705748,1758817386979,-500.0,0.00039999,31]
[387705749,1758817387010,-500.0,0.00039999,31]
[387705750,1758817387038,-396.8363743,0.00039999,31]
[387705751,1758817387065,-199.18091491,0.00039999,31]
[387705752,1758817387093,-227.37754098,0.00039999,31]
[387705753,1758817387126,-500.0,0.00039999,31]
[387705754,1758817387157,-500.0,0.00039999,31]
[387705755,1758817387187,-500.0,0.00039999,31]
[387705756,1758817387218,-241.31487811,0.00039999,31]
[387705757,1758817387244,-151.0,0.00039999,30]
[387705758,1758817387272,-350.0,0.00039999,30]
[387705759,1758817387300,-500.0,0.00039999,30]
[387705760,1758817387326,-5541.83970759,0.0004,30]
[387705761,1758817387353,-2949177.48455611,0.0004,120]
[387705764,1758817402535,-60000.0,0.00038,120]
[387705765,1758817402572,-8919.6754665,0.0004,120]
[387705766,1758817402600,-2004083.82060741,0.0004,120]
[387705767,1758817402626,-500.0,0.0004,120]
[387705768,1758817402654,-504.21070384,0.0004,30]
[387705769,1758817402684,-233.66602051,0.0004,30]
[387705770,1758817402714,-151.0,0.0004,120]
[387705771,1758817402742,-151.0,0.0004,120]
[387705772,1758817402772,-151.0,0.0004,120]
[387705773,1758817402802,-151.0,0.0004,120]
[387705774,1758817402831,-151.0,0.0004,120]
[387705775,1758817402857,-151.0,0.0004,120]
[387705776,1758817402884,-152.333578,0.0004,120]
[387705777,1758817402918,-301.781372,0.0004,120]
[387705778,1758817402949,-151.0,0.0004,120]
[387705779,1758817402978,-151.0,0.0004,120]
[387705780,1758817403006,-151.0,0.0004,120]
[387705781,1758817403035,-151.0,0.0004,120]
[387705782,1758817403065,-151.0,0.0004,120]
[387705783,1758817403093,-151.0,0.0004,120]
[387705784,1758817403120,-151.0,0.0004,120]
[387705785,1758817403148,-151.0,0.0004,120]
[387705786,1758817403176,-151.0,0.0004,120]
[387705787,1758817403206,-151.0,0.0004,120]
[387705788,1758817403234,-151.0,0.0004,120]
[387705789,1758817403262,-151.0,0.0004,120]
[387705790,1758817403290,-151.0,0.0004,120]
[387705791,1758817403319,-151.0,0.0004,120]
[387705792,1758817403347,-151.0,0.0004,120]
[387705793,1758817403378,-151.0,0.0004,120]
[387705794,1758817403407,-151.0,0.0004,120]
[387705795,1758817403436,-151.0,0.0004,120]
[387705796,1758817403589,-151.0,0.0004,120]
[387705797,1758817403615,-151.0,0.0004,120]
[387705798,1758817403640,-151.0,0.0004,120]
[387705799,1758817403666,-160.0,0.0004,30]
[387705800,1758817403692,-151.0,0.0004,120]
[387705801,1758817403717,-222.63277,0.0004,120]
[387705802,1758817403742,-151.485367,0.0004,120]
[387705803,1758817403768,-151.0,0.0004,120]
[387705804,1758817403793,-151.0,0.0004,120]
[387705805,1758817403818,-232.30780184,0.0004,120]
[387705806,1758817403842,-151.0,0.0004,120]
[387705807,1758817403867,-151.0,0.0004,120]
[387705808,1758817403891,-151.0,0.0004,120]
[387705809,1758817403915,-151.0,0.0004,120]
[387705810,1758817403940,-151.946875,0.0004,120]
[387705811,1758817403965,-164.646337,0.0004,120]
[387705812,1758817403989,-164.646337,0.0004,120]
[387705813,1758817404013,-151.0,0.0004,120]
[387705814,1758817404040,-164.646337,0.0004,120]
[387705815,1758817404068,-162.008574,0.0004,120]
[387705816,1758817404095,-164.646337,0.0004,120]
[387705817,1758817404120,-151.0,0.0004,120]
[387705818,1758817404146,-151.0,0.0004,120]
[387705819,1758817404171,-151.0,0.0004,120]
[387705820,1758817404197,-151.0,0.0004,120]
[387705821,1758817404223,-151.0,0.0004,120]
[387705822,1758817404248,-151.0,0.0004,120]
[387705823,1758817404274,-200000.0,0.0004,120]
[387705824,1758817404299,-151.0,0.0004,120]
[387705825,1758817404325,-151.0,0.0004,120]
[387705826,1758817404349,-151.0,0.0004,120]
[387705827,1758817404375,-151.0,0.0004,120]
[387705828,1758817404401,-151.0,0.0004,120]
[387705829,1758817404427,-151.0,0.0004,120]
[387705830,1758817404453,-151.0,0.0004,120]
[387705831,1758817404479,-160.0,0.0004,120]
[387705832,1758817404507,-151.0,0.0004,120]
[387705833,1758817404532,-160.0,0.0004,30]
[387705834,1758817404558,-151.0,0.0004,120]
[387705835,1758817404585,-211.629329,0.0004,120]
[387705836,1758817404610,-151.0,0.0004,120]
[387705837,1758817404635,-211.629329,0.0004,120]
[387705838,1758817404659,-151.0,0.0004,120]
[387705839,1758817404685,-211.629329,0.0004,120]
[387705840,1758817404711,-211.629329,0.0004,120]
[387705841,1758817404736,-151.0,0.0004,120]
[387705842,1758817404760,-151.0,0.0004,120]
[387705843,1758817404785,-151.0,0.0004,120]
[387705844,1758817404809,-277.640078,0.0004,120]
[387705845,1758817404834,-151.0,0.0004,120]
[387705846,1758817404859,-151.0,0.0004,120]
[387705847,1758817404884,-151.0,0.0004,120]
[387705848,1758817404910,-151.0,0.0004,120]
[387705849,1758817404935,-151.0,0.0004,120]
[387705850,1758817404961,-151.0,0.0004,120]
[387705851,1758817404987,-151.0,0.0004,120]
[387705852,1758817405012,-151.0,0.0004,120]
[387705853,1758817405039,-151.0,0.0004,120]
[387705854,1758817405064,-151.0,0.0004,120]
[387705855,1758817405090,-151.0,0.0004,120]
[387705856,1758817405117,-151.0,0.0004,120]
[387705857,1758817405145,-151.0,0.0004,120]
[387705858,1758817405169,-151.0,0.0004,120]
[387705859,1758817405193,-151.0,0.0004,120]
[387705860,1758817405218,-151.0,0.0004,120]
[387705861,1758817405243,-151.777156,0.0004,120]
[387705862,1758817405266,-151.0,0.0004,120]
[387705863,1758817405290,-151.0,0.0004,120]
[387705864,1758817405315,-151.0,0.0004,120]
[387705865,1758817405338,-151.0,0.0004,120]
[387705866,1758817405362,-151.0,0.0004,120]
[387705867,1758817405385,-152.411754,0.0004,120]
[387705868,1758817405412,-151.0,0.0004,120]
[387705869,1758817405437,-153.305078,0.0004,120]
[387705870,1758817405461,-151.0,0.0004,120]
[387705871,1758817405498,-151.0,0.0004,90]
[387705872,1758817405527,-421.525848,0.0004,120]
[387705873,1758817405564,-421.525848,0.0004,120]
[387705874,1758817405628,-421.525848,0.0004,120]
[387705875,1758817405656,-421.525848,0.0004,120]
[387705876,1758817405681,-176.534126,0.0004,120]
[387705877,1758817405706,-151.0,0.0004,120]
[387705878,1758817405735,-151.0,0.0004,120]
[387705879,1758817405762,-151.0,0.0004,120]
[387705880,1758817405787,-151.0,0.0004,120]
[387705881,1758817405812,-151.0,0.0004,120]
[387705882,1758817405837,-1251.30497572,0.0004,30]
[387705883,1758817405862,-250.0,0.00040264,35]
[387705884,1758817405887,-151.0,0.00040264,35]
[387705885,1758817405914,-350.0,0.00040264,35]
[387705886,1758817405941,-500.0,0.00040264,35]
[387705887,1758817405967,-829.79673169,0.00040265,35]
[387705888,1758817405992,-170.23956236,0.0004051,120]
[387705889,1758817406017,-151.0,0.00040512,30]
[387705890,1758817406047,-250.0,0.00040546,32]
[387705891,1758817406071,-151.0,0.00040546,32]
[387705892,1758817406099,-350.0,0.00040546,32]
[387705893,1758817406125,-500.0,0.00040546,32]
[387705894,1758817406150,-301.0,0.000406,30]
[387705895,1758817406174,-200.0,0.000408,55]
[387705896,1758817406197,-1171.04039873,0.00041,120]
[387705897,1758817406223,-219.0,0.00041041,120]
[387705898,1758817406369,-500.0,0.00041095,120]
[387705899,1758817406396,-1007.69,0.00041095,120]
[387705900,1758817406421,-233.66602051,0.000411,120]
[387705901,1758817406446,-170.23956236,0.0004112,120]
[387705902,1758817406472,-250.0,0.00041231,33]
[387705903,1758817406497,-200.0,0.00041231,33]